fUSD/lending_fUSD_20260307
["ID","MTS","AMOUNT","RATE_DAILY","PERIOD"]
[407927133,1772920249644,-534.6,0.00019999,2]
[407927134,1772920249653,-534.6,0.00019999,2]
[407927135,1772920249664,-534.6,0.00019999,2]
[407927136,1772920249676,-534.81629648,0.00019999,2]
[407927137,1772920249689,-500.0,0.00019999,2]
[407927138,1772920249699,-511.13749879,0.00019999,2]
[407927139,1772920249711,-500.0,0.00019999,2]
[407927140,1772920249723,-500.0,0.00019999,2]
[407927141,1772920249731,-500.0,0.00019999,2]
[407927142,1772920249741,-500.0,0.00019999,2]
[407927143,1772920249752,-500.0,0.00019999,2]
[407927144,1772920249762,-500.0,0.00019999,2]
[407927145,1772920249771,-500.0,0.00019999,2]
[407927146,1772920249780,-500.0,0.00019999,2]
[407927147,1772920249789,-500.0,0.00019999,2]
[407927148,1772920249799,-500.0,0.00019999,2]
[407927149,1772920249810,-500.0,0.00019999,2]
[407927150,1772920249819,-500.0,0.00019999,2]
[407927151,1772920249829,-500.0,0.00019999,2]
[407927152,1772920249839,-338.12764348,0.00019999,2]
[407927153,1772920249849,-500.0,0.00019999,2]
[407927154,1772920249859,-500.0,0.00019999,2]
[407927155,1772920249868,-500.0,0.00019999,2]
[407927156,1772920249878,-500.0,0.00019999,2]
[407927157,1772920249888,-385.23414721,0.00019999,2]
[407927158,1772920249898,-500.0,0.00019999,2]
[407927159,1772920249907,-500.0,0.00019999,2]
[407927160,1772920249918,-500.0,0.00019999,2]
[407927161,1772920249928,-598.20309433,0.00019999,2]
[407927162,1772920249938,-500.0,0.00019999,2]
[407927163,1772920249947,-500.0,0.00019999,2]
[407927164,1772920249956,-500.0,0.00019999,2]
[407927165,1772920249965,-500.0,0.00019999,2]
[407927166,1772920249975,-500.0,0.00019999,2]
[407927167,1772920249984,-500.0,0.00019999,2]
[407927168,1772920249993,-500.0,0.00019999,2]
[407927169,1772920250002,-500.0,0.00019999,2]
[407927170,1772920250011,-500.0,0.00019999,2]
[407927171,1772920250021,-507.64759374,0.00019999,2]
[407927172,1772920250030,-500.82,0.00019999,2]
[407927173,1772920250039,-500.82,0.00019999,2]
[407927174,1772920250049,-500.82,0.00019999,2]
[407927175,1772920250058,-500.82,0.00019999,2]
[407927176,1772920250067,-500.82,0.00019999,2]
[407927177,1772920250076,-500.82,0.00019999,2]
[407927178,1772920250086,-500.82,0.00019999,2]
[407927179,1772920250095,-500.82,0.00019999,2]
[407927180,1772920250104,-500.82,0.00019999,2]
[407927181,1772920250114,-500.82,0.00019999,2]
[407927182,1772920250124,-500.82,0.00019999,2]
[407927183,1772920250134,-501.03,0.00019999,2]
[407927184,1772920250143,-500.0,0.00019999,2]
[407927185,1772920250153,-500.0,0.00019999,2]
[407927186,1772920250162,-500.0,0.00019999,2]
[407927187,1772920250172,-500.0,0.00019999,2]
[407927188,1772920250181,-500.0,0.00019999,2]
[407927189,1772920250190,-500.0,0.00019999,2]
[407927190,1772920250199,-500.0,0.00019999,2]
[407927191,1772920250209,-500.0,0.00019999,2]
[407927192,1772920250218,-500.0,0.00019999,2]
[407927193,1772920250228,-500.0,0.00019999,2]
[407927194,1772920250237,-500.0,0.00019999,2]
[407927195,1772920250246,-508.55271829,0.00019999,2]
[407927196,1772920250255,-500.0,0.00019999,2]
[407927197,1772920250264,-500.0,0.00019999,2]
[407927198,1772920250274,-500.0,0.00019999,2]
[407927199,1772920250283,-500.0,0.00019999,2]
[407927200,1772920250293,-500.0,0.00019999,2]
[407927201,1772920250303,-500.0,0.00019999,2]
[407927202,1772920250312,-500.0,0.00019999,2]
[407927203,1772920250321,-500.0,0.00019999,2]
[407927204,1772920250331,-500.0,0.00019999,2]
[407927205,1772920250340,-500.0,0.00019999,2]
[407927206,1772920250349,-500.0,0.00019999,2]
[407927207,1772920250358,-500.0,0.00019999,2]
[407927208,1772920250368,-500.0,0.00019999,2]
[407927209,1772920250377,-500.0,0.00019999,2]
[407927210,1772920250386,-468.90282519,0.00019999,2]
[407927211,1772920250395,-500.0,0.00019999,2]
[407927212,1772920250405,-500.0,0.00019999,2]
[407927213,1772920250414,-500.0,0.00019999,2]
[407927214,1772920250423,-500.0,0.00019999,2]
[407927215,1772920250432,-282.43651056,0.00019999,2]
[407927216,1772920250442,-500.0,0.00019999,2]
[407927217,1772920250451,-500.0,0.00019999,2]
[407927218,1772920250461,-500.0,0.00019999,2]
[407927219,1772920250470,-500.0,0.00019999,2]
[407927220,1772920250480,-500.0,0.00019999,2]
[407927221,1772920250489,-500.0,0.00019999,2]
[407927222,1772920250499,-500.0,0.00019999,2]
[407927223,1772920250508,-500.0,0.00019999,2]
[407927224,1772920250517,-500.0,0.00019999,2]
[407927225,1772920250527,-500.0,0.00019999,2]
[407927226,1772920250536,-649.4,0.00019999,2]
[407927227,1772920250545,-500.0,0.00019999,2]
[407927228,1772920250555,-500.0,0.00019999,2]
[407927229,1772920250564,-500.0,0.00019999,2]
[407927230,1772920250574,-500.0,0.00019999,2]
[407927231,1772920250583,-500.0,0.00019999,2]
[407927232,1772920250593,-500.0,0.00019999,2]
[407927233,1772920250602,-500.0,0.00019999,2]
[407927234,1772920250611,-500.0,0.00019999,2]
[407927235,1772920250621,-500.0,0.00019999,2]
[407927236,1772920250630,-438.84652868,0.00019999,2]
[407927237,1772920250639,-255.94966854,0.00019999,2]
[407927238,1772920250649,-4189245.93853666,0.0002,2]
[407927239,1772920250658,-1000.0,0.0002,2]
[407927240,1772920250667,-3776098.49228129,0.0002,2]
[407927241,1772920250679,-500.0,0.0002,7]
[407927242,1772920250688,-1198.2615,0.0002,2]
[407927243,1772920250697,-8088.6114,0.0002,2]
[407927244,1772920250707,-196590.50089757,0.0002,2]
[407927245,1772920250726,-937.222,0.0002,2]
[407927246,1772920250937,-4321.4757446,0.0002,2]
[407927247,1772920250949,-8480.26340176,0.0002,2]
[407927248,1772920250960,-208113.92749397,0.0002,2]
[407927249,1772920250971,-3576.04888317,0.0002,2]
[407927250,1772920250982,-384.78844652,0.0002,2]
[407927252,1772921210117,-189.3502,0.00012354,2]
[407927253,1772921210137,-6.39292161,0.000124,2]
[407927259,1772921432240,-320.65660765,0.000124,2]
[407927260,1772921432252,-625.6194234,0.000124,2]
[407927261,1772921432264,-4488.66104734,0.000124,2]
[407927262,1772921432274,-1513.97,0.00012454,2]
[407927263,1772921432284,-300.0,0.00012464,2]
[407927264,1772921432294,-195.31687258,0.00013,2]
[407927265,1772921432304,-300.0,0.00013149,2]
[407927266,1772921432314,-1200.0,0.00013638,2]
[407927267,1772921432324,-704.39139721,0.00013728,2]
[407927268,1772921432334,-300.0,0.00013887,2]
[407927269,1772921432344,-300.0,0.00014682,2]
[407927270,1772921432353,-503.40042586,0.00014903,2]
[407927271,1772921432366,-278.617552,0.00014903,2]
[407927272,1772921432378,-621.13759098,0.00014903,2]
[407927273,1772921432390,-663.95329857,0.00014903,2]
[407927274,1772921432401,-2324.08734021,0.00014903,2]
[407927275,1772921432432,-469.05358524,0.00014903,2]
[407927276,1772921432444,-3935.87063297,0.00014903,2]
[407927277,1772921432455,-817.79588592,0.00014903,2]
[407927278,1772921432467,-3298.87374977,0.00014903,2]
[407927279,1772921432479,-861.64940807,0.00014903,2]
[407927280,1772921432491,-71.48053041,0.00014903,2]
[407927282,1772921432501,-1989.45402679,0.00015,3]
[407927284,1772921432510,-1680.0,0.00015002,2]
[407927285,1772921432520,-1000.0,0.00015193,2]
[407927286,1772921432530,-4960.23391057,0.00015194,2]
[407927287,1772921432543,-39.77608943,0.00015194,2]
[407927288,1772921432553,-274.80386629,0.00015194,2]
[407927289,1772921432565,-2720.22713371,0.00015194,2]
[407927290,1772921432575,-168.041,0.00015194,2]
[407927291,1772921432585,-261.65,0.00015206,2]
[407927293,1772921432594,-768.57967462,0.00015396,2]
[407927295,1772921432603,-300.0,0.0001554,2]
[407927297,1772921432613,-300.0,0.00015682,2]
[407927299,1772921432622,-4680.69034108,0.00015683,2]
[407927308,1772921433364,-1885.80247148,0.00015683,2]
[407927309,1772921433377,-183.87858744,0.00015683,2]
[407927310,1772921433386,-1137.70373352,0.00015683,2]
[407927311,1772921433397,-924.05253866,0.00015683,2]
[407927312,1772921433408,-1147.18000044,0.00015683,2]
[407927313,1772921433419,-928.03632738,0.00015683,2]
[407927314,1772921433428,-309.5702,0.00015683,2]
[407927315,1772921433437,-600.0,0.000157,5]
[407927316,1772921433446,-279.43052492,0.00015782,2]
[407927317,1772921433457,-324.01857318,0.00015782,2]
[407927318,1772921433468,-41834.38237007,0.00015782,2]
[407927319,1772921433477,-2500.0,0.00015783,2]
[407927320,1772921433486,-1300.0,0.000158,5]
[407927321,1772921433495,-518.54610185,0.00015882,2]
[407927322,1772921433504,-522.94590214,0.00015882,2]
[407927323,1772921433514,-522.94590214,0.00015882,2]
[407927324,1772921433525,-522.94590214,0.00015882,2]
[407927325,1772921433534,-522.94590214,0.00015882,2]
[407927326,1772921433543,-522.94590214,0.00015882,2]
[407927327,1772921433552,-522.94590214,0.00015882,2]
[407927328,1772921433561,-522.94590214,0.00015882,2]
[407927329,1772921433570,-522.94590214,0.00015882,2]
[407927330,1772921433579,-522.94590214,0.00015882,2]
[407927331,1772921433588,-522.94590214,0.00015882,2]
[407927332,1772921433598,-522.94590214,0.00015882,2]
[407927333,1772921433607,-522.94590214,0.00015882,2]
[407927334,1772921433617,-522.94590214,0.00015882,2]
[407927335,1772921433626,-522.94590214,0.00015882,2]
[407927336,1772921433635,-522.94590214,0.00015882,2]
[407927337,1772921433645,-522.94590214,0.00015882,2]
[407927338,1772921433654,-522.94590214,0.00015882,2]
[407927339,1772921433663,-522.94590214,0.00015882,2]
[407927340,1772921433673,-522.94590214,0.00015882,2]
[407927341,1772921433682,-522.94590214,0.00015882,2]
[407927342,1772921433691,-522.94590214,0.00015882,2]
[407927343,1772921433701,-522.94590214,0.00015882,2]
[407927344,1772921433711,-522.94590214,0.00015882,2]
[407927345,1772921433720,-522.94590214,0.00015882,2]
[407927346,1772921433731,-522.94590214,0.00015882,2]
[407927347,1772921433741,-522.94590214,0.00015882,2]
[407927348,1772921433750,-522.94590214,0.00015882,2]
[407927349,1772921433761,-522.94590214,0.00015882,2]
[407927350,1772921433769,-522.94590214,0.00015882,2]
[407927351,1772921433778,-522.94590214,0.00015882,2]
[407927352,1772921433789,-522.94590214,0.00015882,2]
[407927353,1772921433798,-522.94590214,0.00015882,2]
[407927354,1772921433809,-522.94590214,0.00015882,2]
[407927355,1772921433820,-522.94590214,0.00015882,2]
[407927356,1772921433829,-522.94590214,0.00015882,2]
[407927357,1772921433840,-522.94590214,0.00015882,2]
[407927358,1772921433849,-522.94590214,0.00015882,2]
[407927359,1772921433858,-522.94590214,0.00015882,2]
[407927360,1772921433867,-522.94590214,0.00015882,2]
[407927361,1772921433879,-522.94590214,0.00015882,2]
[407927362,1772921433888,-522.94590214,0.00015882,2]
[407927363,1772921433900,-522.94590214,0.00015882,2]
[407927364,1772921433910,-522.94590214,0.00015882,2]
[407927365,1772921433922,-522.94590214,0.00015882,2]
[407927366,1772921433933,-522.94590214,0.00015882,2]
[407927367,1772921433943,-522.94590214,0.00015882,2]
[407927368,1772921433953,-522.94590214,0.00015882,2]
[407927369,1772921433964,-522.94590214,0.00015882,2]
[407927370,1772921433973,-522.94590214,0.00015882,2]
[407927371,1772921433983,-522.94590214,0.00015882,2]
[407927372,1772921433992,-532.32326631,0.00015882,2]
[407927373,1772921434003,-532.32326631,0.00015882,2]
[407927374,1772921434012,-532.32326631,0.00015882,2]
[407927375,1772921434021,-532.32326631,0.00015882,2]
[407927376,1772921434030,-532.32326631,0.00015882,2]
[407927377,1772921434042,-532.32326631,0.00015882,2]
[407927378,1772921434051,-532.32326631,0.00015882,2]
[407927379,1772921434061,-532.32326631,0.00015882,2]
[407927380,1772921434070,-532.32326631,0.00015882,2]
[407927381,1772921434079,-532.32326631,0.00015882,2]
[407927382,1772921434089,-532.32326631,0.00015882,2]
[407927383,1772921434100,-532.32326631,0.00015882,2]
[407927384,1772921434110,-532.32326631,0.00015882,2]
[407927385,1772921434120,-532.32326631,0.00015882,2]
[407927386,1772921434130,-532.32326631,0.00015882,2]
[407927387,1772921434140,-532.32326631,0.00015882,2]
[407927388,1772921434151,-532.32326631,0.00015882,2]
[407927389,1772921434160,-532.32326631,0.00015882,2]
[407927390,1772921434171,-532.32326631,0.00015882,2]
[407927391,1772921434182,-532.32326631,0.00015882,2]
[407927392,1772921434191,-532.32326631,0.00015882,2]
[407927393,1772921434202,-532.32326631,0.00015882,2]
[407927394,1772921434213,-532.32326631,0.00015882,2]
[407927395,1772921434222,-532.32326631,0.00015882,2]
[407927396,1772921434231,-532.32326631,0.00015882,2]
[407927397,1772921434241,-532.32326631,0.00015882,2]
[407927398,1772921434250,-522.64466147,0.00015882,2]
[407927399,1772921434260,-522.64466147,0.00015882,2]
[407927400,1772921434270,-522.64466147,0.00015882,2]
[407927401,1772921434279,-522.64466147,0.00015882,2]
[407927402,1772921434289,-522.64466147,0.00015882,2]
[407927403,1772921434300,-522.64466147,0.00015882,2]
[407927404,1772921434309,-522.64466147,0.00015882,2]
[407927405,1772921434319,-522.64466147,0.00015882,2]
[407927406,1772921434328,-522.64466147,0.00015882,2]
[407927407,1772921434337,-522.64466147,0.00015882,2]
[407927408,1772921434349,-522.64466143,0.00015882,2]
[407927409,1772921434359,-789.77279176,0.00015883,2]
[407927410,1772921434368,-22270.85379625,0.00015883,2]
[407927411,1772921434381,-9323.60115771,0.00015883,2]
[407927412,1772921434390,-666.99341544,0.00015883,2]
[407927413,1772921434401,-6315.58071898,0.00015885,2]
[407927414,1772921434412,-9383.72939903,0.00015885,2]
[407927424,1772921438267,-48271.54346188,0.00015885,2]
[407927426,1772921438277,-1900.0,0.000159,5]
[407927428,1772921438287,-548.75345228,0.00015973,2]
[407927431,1772921438296,-151.0,0.00015973,2]
[407927434,1772921438305,-500.0,0.00015973,2]
[407927437,1772921438315,-500.0,0.00015973,2]
[407927440,1772921438324,-151.0,0.00015973,2]
[407927443,1772921438334,-500.0,0.00015973,2]
[407927446,1772921438343,-151.0,0.00015973,2]
[407927448,1772921438353,-500.0,0.00015973,2]
[407927450,1772921438363,-151.0,0.00015973,2]
[407927451,1772921438374,-500.0,0.00015973,2]
[407927452,1772921438383,-151.0,0.00015973,2]
[407927453,1772921438393,-500.0,0.00015973,2]
[407927454,1772921438402,-151.0,0.00015973,2]
[407927455,1772921438412,-500.0,0.00015973,2]
[407927456,1772921438422,-151.0,0.00015973,2]
[407927457,1772921438431,-500.0,0.00015973,2]
[407927458,1772921438440,-151.0,0.00015973,2]
[407927459,1772921438449,-500.0,0.00015973,2]
[407927460,1772921438458,-151.0,0.00015973,2]
[407927467,1772921438837,-500.0,0.00015973,2]
[407927468,1772921438847,-151.0,0.00015973,2]
[407927469,1772921438857,-500.0,0.00015973,2]
[407927470,1772921438867,-151.0,0.00015973,2]
[407927471,1772921438876,-500.0,0.00015973,2]
[407927472,1772921438885,-500.0,0.00015973,2]
[407927473,1772921438894,-500.0,0.00015973,2]
[407927474,1772921438904,-500.0,0.00015973,2]
[407927475,1772921438914,-500.0,0.00015973,2]
[407927476,1772921438923,-500.0,0.00015973,2]
[407927477,1772921438932,-500.0,0.00015973,2]
[407927478,1772921438941,-200.0,0.00015973,2]
[407927479,1772921438950,-240.4496104,0.00015973,2]
[407927480,1772921438959,-151.0,0.00015973,2]
[407927481,1772921438972,-504.38999336,0.00015973,2]
[407927482,1772921438981,-151.0,0.00015973,2]
[407927483,1772921438991,-151.0,0.00015973,2]
[407927484,1772921439001,-151.0,0.00015973,2]
[407927485,1772921439011,-151.0,0.00015973,2]
[407927486,1772921439023,-151.0,0.00015973,2]
[407927487,1772921439035,-151.0,0.00015973,2]
[407927488,1772921439045,-151.0,0.00015973,2]
[407927489,1772921439056,-151.0,0.00015973,2]
[407927490,1772921439066,-151.0,0.00015973,2]
[407927491,1772921439076,-151.0,0.00015973,2]
[407927492,1772921439085,-151.0,0.00015973,2]
[407927493,1772921439095,-151.0,0.00015973,2]
[407927494,1772921439104,-151.0,0.00015973,2]
[407927495,1772921439115,-151.0,0.00015973,2]
[407927496,1772921439126,-151.0,0.00015973,2]
[407927497,1772921439138,-151.0,0.00015973,2]
[407927498,1772921439149,-151.0,0.0001598,2]
[407927499,1772921439159,-151.0,0.0001598,2]
[407927500,1772921439168,-1295.19930182,0.00015982,5]
[407927501,1772921439178,-500.0,0.00015982,2]
[407927502,1772921439187,-500.0,0.00015982,2]
[407927503,1772921439197,-500.0,0.00015982,2]
[407927504,1772921439206,-500.0,0.00015982,2]
[407927505,1772921439215,-500.0,0.00015982,2]
[407927506,1772921439225,-500.0,0.00015982,2]
[407927507,1772921439234,-500.0,0.00015982,2]
[407927508,1772921439244,-500.0,0.00015982,2]
[407927509,1772921439253,-500.0,0.00015982,2]
[407927510,1772921439262,-500.0,0.00015982,2]
[407927511,1772921439271,-579.0562129,0.00015982,2]
[407927512,1772921439280,-500.0,0.00015982,2]
[407927513,1772921439289,-500.0,0.00015982,2]
[407927514,1772921439299,-500.0,0.00015982,2]
[407927515,1772921439308,-500.0,0.00015982,2]
[407927516,1772921439318,-500.0,0.00015982,2]
[407927517,1772921439327,-500.0,0.00015982,2]
[407927518,1772921439337,-500.0,0.00015982,2]
[407927519,1772921439346,-500.0,0.00015982,2]
[407927520,1772921439356,-500.0,0.00015982,2]
[407927521,1772921439366,-500.0,0.00015982,2]
[407927522,1772921439375,-500.0,0.00015982,2]
[407927523,1772921439385,-500.0,0.00015982,2]
[407927524,1772921439394,-500.0,0.00015982,2]
[407927525,1772921439403,-500.0,0.00015982,2]
[407927526,1772921439413,-500.0,0.00015982,2]
[407927527,1772921439422,-500.0,0.00015982,2]
[407927528,1772921439431,-500.0,0.00015982,2]
[407927529,1772921439440,-500.0,0.00015982,2]
[407927530,1772921439449,-500.0,0.00015982,2]
[407927531,1772921439459,-500.0,0.00015982,2]
[407927532,1772921439468,-500.0,0.00015982,2]
[407927533,1772921439477,-500.0,0.00015982,2]
[407927534,1772921439486,-500.0,0.00015982,2]
[407927535,1772921439496,-500.0,0.00015982,2]
[407927536,1772921439505,-500.0,0.00015982,2]
[407927537,1772921439514,-500.0,0.00015982,2]
[407927538,1772921439523,-500.0,0.00015982,2]
[407927539,1772921439533,-500.0,0.00015982,2]
[407927540,1772921439542,-500.0,0.00015982,2]
[407927541,1772921439552,-500.0,0.00015982,2]
[407927542,1772921439561,-500.0,0.00015982,2]
[407927543,1772921439570,-500.0,0.00015982,2]
[407927544,1772921439580,-500.0,0.00015982,2]
[407927545,1772921439589,-203.5620078,0.00015982,2]
[407927546,1772921439598,-500.0,0.00015982,2]
[407927547,1772921439608,-500.0,0.00015982,2]
[407927548,1772921439617,-500.0,0.00015982,2]
[407927549,1772921439626,-500.0,0.00015982,2]
[407927550,1772921439635,-500.0,0.00015982,2]
[407927551,1772921439644,-279.9073084,0.00015982,2]
[407927552,1772921439653,-500.0,0.00015982,2]
[407927553,1772921439662,-500.0,0.00015982,2]
[407927554,1772921439671,-500.0,0.00015982,2]
[407927555,1772921439680,-500.0,0.00015982,2]
[407927556,1772921439690,-234.37158679,0.00015982,2]
[407927557,1772921439699,-383.74435779,0.00015982,2]
[407927558,1772921439708,-500.0,0.00015982,2]
[407927559,1772921439717,-185.02676852,0.00015982,2]
[407927560,1772921439726,-10000.0,0.00015983,2]
[407927561,1772921439735,-1500.0,0.00016011,2]
[407927562,1772921439745,-3240.0,0.00016011,2]
[407927563,1772921439754,-1086.79,0.00016011,2]
[407927564,1772921439763,-1277.12,0.00016011,2]
[407927565,1772921439773,-1600.0,0.00016011,2]
[407927566,1772921439782,-200.0,0.00016011,2]
[407927567,1772921439792,-500.0,0.0001612,2]
[407927568,1772921439801,-32918.3967,0.00016123,2]
[407927569,1772921439811,-1000.0,0.00016123,2]
[407927570,1772921439820,-2345.18530938,0.00016198,2]
[407927571,1772921439829,-5000.0053333,0.000162,5]
[407927572,1772921439838,-500.0,0.00016232,2]
[407927573,1772921439847,-210.6126522,0.00016232,2]
[407927574,1772921439857,-500.0,0.00016232,2]
[407927575,1772921439867,-500.0,0.00016232,2]
[407927576,1772921439876,-500.0,0.00016232,2]
[407927577,1772921439886,-500.0,0.00016232,2]
[407927578,1772921439896,-500.0,0.00016232,2]
[407927579,1772921439905,-500.0,0.00016232,2]
[407927580,1772921439914,-500.0,0.00016232,2]
[407927581,1772921439924,-500.0,0.00016232,2]
[407927582,1772921439933,-500.0,0.00016232,2]
[407927583,1772921439942,-500.0,0.00016232,2]
[407927584,1772921439951,-500.0,0.00016232,2]
[407927585,1772921439962,-500.0,0.00016232,2]
[407927586,1772921439975,-500.0,0.00016232,2]
[407927587,1772921439984,-500.0,0.00016232,2]
[407927588,1772921439994,-500.0,0.00016232,2]
[407927589,1772921440003,-500.0,0.00016232,2]
[407927590,1772921440013,-500.0,0.00016232,2]
[407927591,1772921440022,-500.0,0.00016232,2]
[407927592,1772921440032,-500.0,0.00016232,2]
[407927593,1772921440041,-500.0,0.00016232,2]
[407927594,1772921440051,-500.0,0.00016232,2]
[407927595,1772921440060,-500.0,0.00016232,2]
[407927596,1772921440070,-500.0,0.00016232,2]
[407927597,1772921440080,-500.0,0.00016232,2]
[407927598,1772921440089,-500.0,0.00016232,2]
[407927599,1772921440099,-500.0,0.00016232,2]
[407927600,1772921440109,-500.0,0.00016232,2]
[407927601,1772921440119,-500.0,0.00016232,2]
[407927602,1772921440129,-500.0,0.00016232,2]
[407927603,1772921440138,-500.0,0.00016232,2]
[407927604,1772921440149,-500.0,0.00016232,2]
[407927605,1772921440158,-500.0,0.00016232,2]
[407927606,1772921440168,-500.0,0.00016232,2]
[407927607,1772921440178,-500.0,0.00016232,2]
[407927608,1772921440187,-500.0,0.00016232,2]
[407927609,1772921440196,-500.0,0.00016232,2]
[407927610,1772921440206,-500.0,0.00016232,2]
[407927611,1772921440218,-42437.83146808,0.0001624,2]
[407927612,1772921440229,-648.54,0.00016273,2]
[407927613,1772921440239,-31594.45495387,0.00016329,2]
[407927614,1772921440248,-1277.12,0.00016411,2]
[407927615,1772921440257,-300.0,0.00016464,2]
[407927616,1772921440267,-166.66,0.00016491,2]
[407927617,1772921440279,-500.0,0.00016499,2]
[407927618,1772921440289,-553.67077404,0.00016499,2]
[407927619,1772921440298,-1680.0,0.00016502,2]
[407927620,1772921440307,-200.0,0.00016521,2]
[407927621,1772921440318,-789.7727917,0.00016553,2]
[407927622,1772921440327,-544.0,0.00016658,2]
[407927623,1772921440336,-42437.83146808,0.00016697,2]
[407927624,1772921440346,-31594.45495387,0.00016776,2]
[407927625,1772921440356,-510.0,0.00016811,2]
[407927626,1772921440366,-1277.12,0.00016811,2]
[407927627,1772921440375,-4592.8277,0.00016831,2]
[407927628,1772921440385,-130588.39575346,0.00017,2]
[407927629,1772921440395,-503.0,0.00017,2]
[407927630,1772921440405,-200.0,0.00017069,2]
[407927631,1772921440414,-151.0,0.00017152,2]
[407927632,1772921440424,-42437.83146808,0.00017155,2]
[407927633,1772921440434,-166.66,0.00017171,2]
[407927634,1772921440443,-1277.12,0.00017211,2]
[407927636,1772921440452,-789.7727917,0.00017222,2]
[407927637,1772921440461,-31594.45495387,0.00017222,2]
[407927639,1772921440470,-500.0,0.00017404,2]
[407927640,1772921440479,-300.0,0.0001746,2]
[407927641,1772921440488,-1277.12,0.00017612,2]
[407927642,1772921440499,-42437.83146808,0.00017612,2]
[407927643,1772921440509,-648.54,0.00017643,2]
[407927644,1772921440518,-500.0,0.00017667,2]
[407927645,1772921440528,-500.0,0.00017667,2]
[407927646,1772921440537,-500.0,0.00017667,2]
[407927647,1772921440547,-539.36,0.00017667,2]
[407927648,1772921440556,-500.0,0.00017667,2]
[407927649,1772921440565,-31594.45495387,0.00017668,2]
[407927650,1772921440575,-800.0,0.00017808,2]
[407927651,1772921440585,-166.66,0.00017852,2]
[407927652,1772921440594,-789.7727917,0.00017892,2]
[407927653,1772921440603,-666.99341543,0.00017892,2]
[407927654,1772921440612,-199.8,0.00018,4]
[407927655,1772921440621,-1600.0,0.00018012,2]
[407927656,1772921440632,-866.0,0.00018019,2]
[407927657,1772921440642,-42437.83146808,0.0001807,2]
[407927658,1772921440652,-900.0,0.00018082,7]
[407927659,1772921440662,-2100.0,0.00018082,7]
[407927660,1772921440670,-1800.0,0.00018082,7]
[407927661,1772921440679,-31594.45495387,0.00018115,2]
[407927662,1772921440689,-350.0,0.00018496,5]
[407927663,1772921440699,-42437.83146808,0.00018527,2]
[407927664,1772921440709,-166.66,0.00018532,2]
[407927665,1772921440719,-300.0,0.00018533,2]
[407927666,1772921440730,-789.7727917,0.00018561,2]
[407927667,1772921440741,-31594.45495387,0.00018561,2]
[407927668,1772921440751,-151.0,0.00018696,2]
[407927669,1772921440763,-209.40437684,0.00018696,2]
[407927670,1772921440773,-721.12765535,0.00018696,2]
[407927671,1772921440783,-1428.38747117,0.00018696,2]
[407927672,1772921440792,-250.0,0.00018696,2]
[407927673,1772921440802,-250.0,0.00018696,2]
[407927674,1772921440811,-250.0,0.00018696,2]
[407927675,1772921440821,-500.0,0.00018696,2]
[407927676,1772921440831,-250.0,0.00018696,2]
[407927677,1772921440841,-250.0,0.00018696,2]
[407927678,1772921440850,-250.0,0.00018696,2]
[407927679,1772921440860,-250.0,0.00018696,2]
[407927680,1772921440869,-250.0,0.00018696,2]
[407927681,1772921440880,-245.69751528,0.00018696,2]
[407927682,1772921440891,-250.0,0.00018696,2]
[407927683,1772921440900,-250.0,0.00018696,2]
[407927684,1772921440909,-1000.0,0.00018696,2]
[407927685,1772921440919,-250.0,0.00018696,2]